[Event "Titled Tuesday Blitz June 27 Late 2023"]
[White "Topalov, Aleksandar"]
[Black "Mirzoev, Azer"]
[WhiteFideId "925659"]
[BlackFideId "13400304"]
[WhiteElo "2381"]
[BlackElo "2681"]
[Result "1/2-1/2"]
[Round "2"]
[TimeControl "180+2"]
[Date "2023.06.27"]
[WhiteClock "0:00:02"]
[BlackClock "0:00:14"]
[Board "114"]

1. b3 {[%clk 0:03:00]}  c6 {[%clk 0:03:00]} 2. Bb2 {[%clk 0:03:01]}  d5 {[%clk 0:03:00]} 3. Nf3 {[%clk 0:03:01]}  Bg4 {[%clk 0:02:58]} 4. g3 {[%clk 0:03:01]}  Bxf3 {[%clk 0:02:57]} 5. exf3 {[%clk 0:03:01]}  e6 {[%clk 0:02:57]} 6. d4 {[%clk 0:03:00]}  Nf6 {[%clk 0:02:56]} 7. Bd3 {[%clk 0:03:00]}  c5 {[%clk 0:02:54]} 8. dxc5 {[%clk 0:03:00]}  Bxc5 {[%clk 0:02:53]} 9. O-O {[%clk 0:02:59]}  Nc6 {[%clk 0:02:52]} 10. a3 {[%clk 0:02:58]}  O-O {[%clk 0:02:51]} 11. Re1 {[%clk 0:02:58]}  Re8 {[%clk 0:02:45]} 12. Nd2 {[%clk 0:02:53]}  Bd4 {[%clk 0:02:44]} 13. c3 {[%clk 0:02:49]}  Bb6 {[%clk 0:02:42]} 14. Nf1 {[%clk 0:02:49]}  Rc8 {[%clk 0:02:41]} 15. b4 {[%clk 0:02:43]}  Ne7 {[%clk 0:02:31]} 16. Rc1 {[%clk 0:02:40]}  Ng6 {[%clk 0:02:20]} 17. c4 {[%clk 0:02:39]}  dxc4 {[%clk 0:02:18]} 18. Bxc4 {[%clk 0:02:35]}  Qxd1 {[%clk 0:02:17]} 19. Rexd1 {[%clk 0:02:35]}  Red8 {[%clk 0:02:15]} 20. Rxd8+ {[%clk 0:02:24]}  Rxd8 {[%clk 0:02:14]} 21. Bb3 {[%clk 0:02:12]}  Ne7 {[%clk 0:02:12]} 22. Rd1 {[%clk 0:02:09]}  Rc8 {[%clk 0:02:07]} 23. Ne3 {[%clk 0:02:05]}  Kf8 {[%clk 0:02:01]} 24. Nc4 {[%clk 0:02:04]}  Bc7 {[%clk 0:01:58]} 25. Ne5 {[%clk 0:01:58]}  Ned5 {[%clk 0:01:56]} 26. Kg2 {[%clk 0:01:55]}  Rd8 {[%clk 0:01:51]} 27. Nc4 {[%clk 0:01:49]}  Ke7 {[%clk 0:01:49]} 28. Ne5 {[%clk 0:01:39]}  a6 {[%clk 0:01:41]} 29. Kf1 {[%clk 0:01:38]}  Bb6 {[%clk 0:01:34]} 30. Ke2 {[%clk 0:01:36]}  Rc8 {[%clk 0:01:29]} 31. Nc4 {[%clk 0:01:31]}  Ba7 {[%clk 0:01:28]} 32. Rc1 {[%clk 0:01:23]}  g6 {[%clk 0:01:19]} 33. Ne3 {[%clk 0:01:20]}  Rxc1 {[%clk 0:01:13]} 34. Bxc1 {[%clk 0:01:19]}  Nc3+ {[%clk 0:01:13]} 35. Kd3 {[%clk 0:01:12]}  Nb5 {[%clk 0:01:13]} 36. a4 {[%clk 0:01:06]}  Nd4 {[%clk 0:01:11]} 37. Bd1 {[%clk 0:01:01]}  Nd7 {[%clk 0:01:08]} 38. f4 {[%clk 0:00:59]}  Nc6 {[%clk 0:01:07]} 39. Bd2 {[%clk 0:00:57]}  Nf6 {[%clk 0:00:58]} 40. Bf3 {[%clk 0:00:56]}  Kd7 {[%clk 0:00:54]} 41. b5 {[%clk 0:00:56]}  axb5 {[%clk 0:00:54]} 42. axb5 {[%clk 0:00:56]}  Nd8 {[%clk 0:00:54]} 43. Ba5 {[%clk 0:00:52]}  b6 {[%clk 0:00:51]} 44. Bb4 {[%clk 0:00:50]}  Bb8 {[%clk 0:00:47]} 45. Bc3 {[%clk 0:00:48]}  Ne8 {[%clk 0:00:46]} 46. Nc4 {[%clk 0:00:47]}  Bc7 {[%clk 0:00:45]} 47. Bd4 {[%clk 0:00:47]}  Nd6 {[%clk 0:00:43]} 48. Ne5+ {[%clk 0:00:38]}  Ke8 {[%clk 0:00:41]} 49. Bc6+ {[%clk 0:00:25]}  Nxc6 {[%clk 0:00:37]} 50. bxc6 {[%clk 0:00:26]}  h5 {[%clk 0:00:31]} 51. Nc4 {[%clk 0:00:23]}  Nc8 {[%clk 0:00:28]} 52. Bf6 {[%clk 0:00:19]}  Na7 {[%clk 0:00:26]} 53. Bd4 {[%clk 0:00:19]}  Nxc6 {[%clk 0:00:20]} 54. Bxb6 {[%clk 0:00:19]}  Nb4+ {[%clk 0:00:20]} 55. Ke4 {[%clk 0:00:15]}  Bxb6 {[%clk 0:00:19]} 56. Nxb6 {[%clk 0:00:15]}  Ke7 {[%clk 0:00:19]} 57. Nc4 {[%clk 0:00:14]}  Nd5 {[%clk 0:00:19]} 58. h3 {[%clk 0:00:12]}  Nf6+ {[%clk 0:00:19]} 59. Kf3 {[%clk 0:00:12]}  Nd7 {[%clk 0:00:20]} 60. g4 {[%clk 0:00:12]}  hxg4+ {[%clk 0:00:20]} 61. hxg4 {[%clk 0:00:12]}  Nc5 {[%clk 0:00:20]} 62. Ke3 {[%clk 0:00:11]}  Kf6 {[%clk 0:00:19]} 63. f3 {[%clk 0:00:11]}  Nd7 {[%clk 0:00:19]} 64. g5+ {[%clk 0:00:11]}  Ke7 {[%clk 0:00:20]} 65. Ke4 {[%clk 0:00:10]}  Nb8 {[%clk 0:00:20]} 66. Kd4 {[%clk 0:00:10]}  Nc6+ {[%clk 0:00:20]} 67. Kc5 {[%clk 0:00:10]}  Nb8 {[%clk 0:00:20]} 68. Ne5 {[%clk 0:00:10]}  Na6+ {[%clk 0:00:17]} 69. Kb5 {[%clk 0:00:09]}  Nc7+ {[%clk 0:00:17]} 70. Kc5 {[%clk 0:00:08]}  Nd5 {[%clk 0:00:18]} 71. Nd3 {[%clk 0:00:09]}  Ne3 {[%clk 0:00:18]} 72. Kd4 {[%clk 0:00:08]}  Nf5+ {[%clk 0:00:18]} 73. Ke5 {[%clk 0:00:08]}  Ng7 {[%clk 0:00:17]} 74. Nc5 {[%clk 0:00:07]}  Nh5 {[%clk 0:00:17]} 75. Ne4 {[%clk 0:00:07]}  Ng7 {[%clk 0:00:17]} 76. Nf6 {[%clk 0:00:06]}  Nf5 {[%clk 0:00:17]} 77. Ne4 {[%clk 0:00:06]}  Ne3 {[%clk 0:00:17]} 78. Nf6 {[%clk 0:00:04]}  Nc4+ {[%clk 0:00:16]} 79. Kd4 {[%clk 0:00:04]}  Nd6 {[%clk 0:00:16]} 80. Ne4 {[%clk 0:00:03]}  Nb5+ {[%clk 0:00:16]} 81. Kc5 {[%clk 0:00:03]}  Nc7 {[%clk 0:00:16]} 82. Kd4 {[%clk 0:00:03]}  Nd5 {[%clk 0:00:16]} 83. Ke5 {[%clk 0:00:04]}  Ne3 {[%clk 0:00:16]} 84. Nf6 {[%clk 0:00:03]}  Nc4+ {[%clk 0:00:16]} 85. Kd4 {[%clk 0:00:04]}  Nd6 {[%clk 0:00:16]} 86. Ke5 {[%clk 0:00:03]}  Nb7 {[%clk 0:00:15]} 87. Ng8+ {[%clk 0:00:03]}  Kf8 {[%clk 0:00:15]} 88. Nf6 {[%clk 0:00:03]}  Nc5 {[%clk 0:00:15]} 89. Kd4 {[%clk 0:00:02]}  Nb7 {[%clk 0:00:14]} 90. Ke5 {[%clk 0:00:01]}  Ke7 {[%clk 0:00:14]} 91. Ng8+ {[%clk 0:00:01]}  Kf8 {[%clk 0:00:14]} 92. Nf6 {[%clk 0:00:02]} 1/2-1/2


[Site "https://www.chess.com"]

[Event "Titled Tuesday Blitz June 27 Late 2023"]
[White "Liyanage, Ranindu Dilshan"]
[Black "Sokolov, Andrei"]
[WhiteFideId "9915834"]
[BlackFideId "11600306"]
[WhiteElo "2642"]
[BlackElo "2373"]
[Result "1-0"]
[Round "2"]
[TimeControl "180+2"]
[Date "2023.06.27"]
[WhiteClock "0:02:25"]
[BlackClock "0:00:04"]
[Board "118"]

1. e4 {[%clk 0:02:59]}  c6 {[%clk 0:02:59]} 2. d4 {[%clk 0:02:59]}  d5 {[%clk 0:03:00]} 3. e5 {[%clk 0:02:57]}  Bf5 {[%clk 0:02:59]} 4. c4 {[%clk 0:02:58]}  e6 {[%clk 0:02:59]} 5. Nc3 {[%clk 0:02:58]}  dxc4 {[%clk 0:02:57]} 6. Bxc4 {[%clk 0:02:58]}  Nd7 {[%clk 0:02:55]} 7. Nf3 {[%clk 0:02:57]}  Ne7 {[%clk 0:02:54]} 8. h3 {[%clk 0:02:58]}  Nd5 {[%clk 0:02:45]} 9. Bd3 {[%clk 0:02:56]}  Bxd3 {[%clk 0:02:42]} 10. Qxd3 {[%clk 0:02:57]}  Be7 {[%clk 0:02:40]} 11. O-O {[%clk 0:02:56]}  O-O {[%clk 0:02:38]} 12. Ne4 {[%clk 0:02:55]}  c5 {[%clk 0:02:34]} 13. Bg5 {[%clk 0:02:54]}  cxd4 {[%clk 0:02:27]} 14. Bxe7 {[%clk 0:02:51]}  Nxe7 {[%clk 0:02:14]} 15. Neg5 {[%clk 0:02:45]}  g6 {[%clk 0:02:08]} 16. Qxd4 {[%clk 0:02:42]}  Nf5 {[%clk 0:02:04]} 17. Qf4 {[%clk 0:02:41]}  Qb6 {[%clk 0:01:49]} 18. Rfd1 {[%clk 0:02:38]}  Nc5 {[%clk 0:01:38]} 19. b4 {[%clk 0:02:32]}  Na4 {[%clk 0:01:28]} 20. g4 {[%clk 0:02:31]}  Ne7 {[%clk 0:01:22]} 21. Ne4 {[%clk 0:02:30]}  Rfd8 {[%clk 0:00:04]} 22. Qh6 {[%clk 0:02:25]} 1-0


[Site "https://www.chess.com"]

[Event "Titled Tuesday Blitz June 27 Late 2023"]
[White "FromTexas54"]
[Black "Chen, Justin"]
[BlackFideId "2098199"]
[WhiteElo "2367"]
[BlackElo "2617"]
[Result "0-1"]
[Round "2"]
[TimeControl "180+2"]
[Date "2023.06.27"]
[WhiteClock "0:00:00"]
[BlackClock "0:00:21"]
[Board "121"]

1. Nf3 {[%clk 0:03:00]}  c5 {[%clk 0:02:58]} 2. g3 {[%clk 0:03:00]}  Nc6 {[%clk 0:02:57]} 3. Bg2 {[%clk 0:03:00]}  g6 {[%clk 0:02:55]} 4. O-O {[%clk 0:03:00]}  Bg7 {[%clk 0:02:56]} 5. c4 {[%clk 0:03:00]}  e6 {[%clk 0:02:55]} 6. Nc3 {[%clk 0:03:00]}  Nge7 {[%clk 0:02:55]} 7. d3 {[%clk 0:02:58]}  d5 {[%clk 0:02:54]} 8. cxd5 {[%clk 0:02:54]}  Nxd5 {[%clk 0:02:53]} 9. Bd2 {[%clk 0:02:53]}  O-O {[%clk 0:02:52]} 10. Rb1 {[%clk 0:02:52]}  b6 {[%clk 0:02:50]} 11. a3 {[%clk 0:02:51]}  Bb7 {[%clk 0:02:44]} 12. Nxd5 {[%clk 0:02:51]}  exd5 {[%clk 0:02:45]} 13. b4 {[%clk 0:02:49]}  c4 {[%clk 0:02:44]} 14. Qc2 {[%clk 0:02:42]}  b5 {[%clk 0:02:41]} 15. Be3 {[%clk 0:02:36]}  Re8 {[%clk 0:02:27]} 16. Bc5 {[%clk 0:02:30]}  Qf6 {[%clk 0:02:15]} 17. Rfe1 {[%clk 0:02:23]}  Rad8 {[%clk 0:02:09]} 18. a4 {[%clk 0:01:54]}  a6 {[%clk 0:02:08]} 19. axb5 {[%clk 0:01:54]}  axb5 {[%clk 0:02:09]} 20. Rbd1 {[%clk 0:01:48]}  Qc3 {[%clk 0:02:08]} 21. Qb1 {[%clk 0:01:47]}  h6 {[%clk 0:02:00]} 22. e4 {[%clk 0:01:43]}  dxe4 {[%clk 0:01:54]} 23. dxe4 {[%clk 0:01:31]}  Ne5 {[%clk 0:01:53]} 24. Rxd8 {[%clk 0:01:20]}  Rxd8 {[%clk 0:01:54]} 25. Nxe5 {[%clk 0:01:20]}  Bxe5 {[%clk 0:01:54]} 26. Rd1 {[%clk 0:01:10]}  Rd3 {[%clk 0:01:49]} 27. Bf1 {[%clk 0:01:04]}  Rxd1 {[%clk 0:01:37]} 28. Qxd1 {[%clk 0:01:04]}  Bxe4 {[%clk 0:01:37]} 29. Qd8+ {[%clk 0:01:01]}  Kh7 {[%clk 0:01:38]} 30. Be3 {[%clk 0:00:19]}  Bg7 {[%clk 0:01:30]} 31. Qe8 {[%clk 0:00:18]}  Qe5 {[%clk 0:01:20]} 32. Qxf7 {[%clk 0:00:16]}  Bd5 {[%clk 0:01:21]} 33. Qa7 {[%clk 0:00:12]}  Qe4 {[%clk 0:01:19]} 34. f3 {[%clk 0:00:08]}  Qxf3 {[%clk 0:01:15]} 35. Bd4 {[%clk 0:00:07]}  Qf7 {[%clk 0:01:14]} 36. Qc5 {[%clk 0:00:04]}  Qd7 {[%clk 0:00:56]} 37. Bxg7 {[%clk 0:00:03]}  Kxg7 {[%clk 0:00:56]} 38. Qd4+ {[%clk 0:00:03]}  Kh7 {[%clk 0:00:55]} 39. Bg2 {[%clk 0:00:01]}  Bc6 {[%clk 0:00:48]} 40. Qe5 {[%clk 0:00:02]}  Bxg2 {[%clk 0:00:35]} 41. Kxg2 {[%clk 0:00:02]}  h5 {[%clk 0:00:29]} 42. h4 {[%clk 0:00:02]}  Qd2+ {[%clk 0:00:23]} 43. Kh3 {[%clk 0:00:01]}  Qd7+ {[%clk 0:00:24]} 44. Kg2 {[%clk 0:00:01]}  Kg8 {[%clk 0:00:22]} 45. Qe4 {[%clk 0:00:00]}  Qf5 {[%clk 0:00:21]} 0-1


[Site "https://www.chess.com"]

[Event "Titled Tuesday Blitz June 27 Late 2023"]
[White "Barski, Radoslaw"]
[Black "Raahul V S"]
[WhiteFideId "1131710"]
[BlackFideId "25035525"]
[WhiteElo "2366"]
[BlackElo "2614"]
[Result "1-0"]
[Round "2"]
[TimeControl "180+2"]
[Date "2023.06.27"]
[WhiteClock "0:00:16"]
[BlackClock "0:00:00"]
[Board "122"]

1. e4 {[%clk 0:02:52]}  e5 {[%clk 0:02:58]} 2. Bc4 {[%clk 0:02:49]}  Nf6 {[%clk 0:02:58]} 3. Nc3 {[%clk 0:02:47]}  Nc6 {[%clk 0:02:57]} 4. d3 {[%clk 0:02:43]}  Na5 {[%clk 0:02:57]} 5. Bb3 {[%clk 0:02:39]}  Nxb3 {[%clk 0:02:56]} 6. axb3 {[%clk 0:02:40]}  d5 {[%clk 0:02:54]} 7. exd5 {[%clk 0:02:39]}  Nxd5 {[%clk 0:02:55]} 8. Nge2 {[%clk 0:02:40]}  Be6 {[%clk 0:02:55]} 9. O-O {[%clk 0:02:40]}  Be7 {[%clk 0:02:53]} 10. Ng3 {[%clk 0:02:38]}  O-O {[%clk 0:02:52]} 11. Qh5 {[%clk 0:02:18]}  f6 {[%clk 0:02:49]} 12. Nxd5 {[%clk 0:02:15]}  Qxd5 {[%clk 0:02:50]} 13. Ra4 {[%clk 0:01:58]}  g6 {[%clk 0:02:49]} 14. Qh6 {[%clk 0:01:52]}  Qd7 {[%clk 0:02:48]} 15. f4 {[%clk 0:01:35]}  Rae8 {[%clk 0:02:36]} 16. Kh1 {[%clk 0:00:52]}  a6 {[%clk 0:02:32]} 17. f5 {[%clk 0:00:26]}  Qc6 {[%clk 0:02:32]} 18. fxg6 {[%clk 0:00:18]}  Rf7 {[%clk 0:02:31]} 19. gxf7+ {[%clk 0:00:16]}  Bxf7 {[%clk 0:02:32]} 20. Rg4+ {[%clk 0:00:15]}  Bg6 {[%clk 0:02:30]} 21. Rxg6+ {[%clk 0:00:16]}  hxg6 {[%clk 0:02:31]} 22. Qxg6+ {[%clk 0:00:16]}  Kh8 {[%clk 0:00:00]} 23. Rf5 {[%clk 0:00:16]} 1-0


[Site "https://www.chess.com"]

[Event "Titled Tuesday Blitz June 27 Late 2023"]
[White "Bitoon, Richard"]
[Black "Fernandez Siles, Luis"]
[WhiteFideId "5201110"]
[BlackFideId "2209420"]
[WhiteElo "2587"]
[BlackElo "2362"]
[Result "1-0"]
[Round "2"]
[TimeControl "180+2"]
[Date "2023.06.27"]
[WhiteClock "0:02:17"]
[BlackClock "0:01:28"]
[Board "124"]

1. e4 {[%clk 0:02:59]}  c5 {[%clk 0:02:59]} 2. c3 {[%clk 0:02:52]}  Nf6 {[%clk 0:02:59]} 3. e5 {[%clk 0:02:52]}  Nd5 {[%clk 0:02:59]} 4. d4 {[%clk 0:02:53]}  cxd4 {[%clk 0:02:59]} 5. Nf3 {[%clk 0:02:54]}  Nc6 {[%clk 0:02:59]} 6. Bc4 {[%clk 0:02:54]}  Nb6 {[%clk 0:02:59]} 7. Bb3 {[%clk 0:02:55]}  d6 {[%clk 0:02:59]} 8. exd6 {[%clk 0:02:56]}  Qxd6 {[%clk 0:03:00]} 9. O-O {[%clk 0:02:56]}  Be6 {[%clk 0:03:00]} 10. Na3 {[%clk 0:02:57]}  Bxb3 {[%clk 0:02:57]} 11. axb3 {[%clk 0:02:58]}  e6 {[%clk 0:02:55]} 12. Nb5 {[%clk 0:02:57]}  Qd7 {[%clk 0:02:51]} 13. Bf4 {[%clk 0:02:46]}  Nd5 {[%clk 0:02:48]} 14. Bg3 {[%clk 0:02:47]}  a6 {[%clk 0:02:43]} 15. c4 {[%clk 0:02:46]}  Nb6 {[%clk 0:01:54]} 16. Nc7+ {[%clk 0:02:45]}  Kd8 {[%clk 0:01:54]} 17. Nxa8 {[%clk 0:02:42]}  Nxa8 {[%clk 0:01:55]} 18. Ne5 {[%clk 0:02:33]}  Nxe5 {[%clk 0:01:50]} 19. Bxe5 {[%clk 0:02:32]}  Bc5 {[%clk 0:01:49]} 20. Bxg7 {[%clk 0:02:32]}  Rg8 {[%clk 0:01:49]} 21. Bf6+ {[%clk 0:02:32]}  Kc8 {[%clk 0:01:50]} 22. b4 {[%clk 0:02:28]}  Ba7 {[%clk 0:01:44]} 23. c5 {[%clk 0:02:27]}  e5 {[%clk 0:01:44]} 24. Bxe5 {[%clk 0:02:25]}  Qd5 {[%clk 0:01:44]} 25. Bg3 {[%clk 0:02:23]}  f5 {[%clk 0:01:40]} 26. Qh5 {[%clk 0:02:20]}  Nc7 {[%clk 0:01:35]} 27. Qxh7 {[%clk 0:02:17]}  f4 {[%clk 0:01:31]} 28. Qh3+ {[%clk 0:02:17]}  Kb8 {[%clk 0:01:28]} 29. Bxf4 {[%clk 0:02:17]} 1-0


[Site "https://www.chess.com"]

[Event "Titled Tuesday Blitz June 27 Late 2023"]
[White "Ortega Amarelle, Mariano"]
[Black "Davidson, Kevin"]
[WhiteFideId "3504301"]
[BlackFideId "2056810"]
[WhiteElo "2547"]
[BlackElo "2353"]
[Result "0-1"]
[Round "2"]
[TimeControl "180+2"]
[Date "2023.06.27"]
[WhiteClock "0:02:13"]
[BlackClock "0:02:25"]
[Board "128"]

1. b3 {[%clk 0:03:00]}  g6 {[%clk 0:02:59]} 2. Bb2 {[%clk 0:03:01]}  Nf6 {[%clk 0:02:58]} 3. Bxf6 {[%clk 0:02:59]}  exf6 {[%clk 0:02:59]} 4. c4 {[%clk 0:02:59]}  d5 {[%clk 0:02:59]} 5. cxd5 {[%clk 0:02:57]}  Qxd5 {[%clk 0:03:00]} 6. Nc3 {[%clk 0:02:57]}  Qa5 {[%clk 0:03:00]} 7. g3 {[%clk 0:02:46]}  Bb4 {[%clk 0:02:59]} 8. Qc2 {[%clk 0:02:37]}  O-O {[%clk 0:02:55]} 9. Bg2 {[%clk 0:02:34]}  Nc6 {[%clk 0:02:36]} 10. Nf3 {[%clk 0:02:32]}  Bf5 {[%clk 0:02:31]} 11. Qb2 {[%clk 0:02:13]}  Ba3 {[%clk 0:02:25]} 0-1


[Site "https://www.chess.com"]

[Event "Titled Tuesday Blitz June 27 Late 2023"]
[White "Berezin, Viktor"]
[Black "Wendt, Jan-Dietrich"]
[WhiteFideId "14107872"]
[BlackFideId "4623797"]
[WhiteElo "2533"]
[BlackElo "2352"]
[Result "0-1"]
[Round "2"]
[TimeControl "180+2"]
[Date "2023.06.27"]
[WhiteClock "0:00:02"]
[BlackClock "0:00:05"]
[Board "129"]

1. d4 {[%clk 0:01:43]}  Nf6 {[%clk 0:02:57]} 2. Nf3 {[%clk 0:01:42]}  g6 {[%clk 0:02:57]} 3. g3 {[%clk 0:01:42]}  Bg7 {[%clk 0:02:56]} 4. Bg2 {[%clk 0:01:43]}  c5 {[%clk 0:02:56]} 5. O-O {[%clk 0:01:43]}  cxd4 {[%clk 0:02:56]} 6. Nxd4 {[%clk 0:01:44]}  Nc6 {[%clk 0:02:56]} 7. Nxc6 {[%clk 0:01:44]}  bxc6 {[%clk 0:02:55]} 8. c4 {[%clk 0:01:44]}  O-O {[%clk 0:02:55]} 9. Nc3 {[%clk 0:01:45]}  Rb8 {[%clk 0:02:49]} 10. b3 {[%clk 0:01:43]}  c5 {[%clk 0:02:47]} 11. Bb2 {[%clk 0:01:40]}  Bb7 {[%clk 0:02:45]} 12. Bxb7 {[%clk 0:01:34]}  Rxb7 {[%clk 0:02:45]} 13. Qc2 {[%clk 0:01:22]}  d6 {[%clk 0:02:42]} 14. Rad1 {[%clk 0:01:20]}  Qa5 {[%clk 0:02:39]} 15. e4 {[%clk 0:01:15]}  Ng4 {[%clk 0:02:16]} 16. Nb1 {[%clk 0:00:50]}  Qxa2 {[%clk 0:02:08]} 17. Rd2 {[%clk 0:00:47]}  Qxb3 {[%clk 0:01:57]} 18. Bxg7 {[%clk 0:00:46]}  Qxc2 {[%clk 0:01:54]} 19. Rxc2 {[%clk 0:00:47]}  Kxg7 {[%clk 0:01:54]} 20. Nc3 {[%clk 0:00:37]}  Rfb8 {[%clk 0:01:43]} 21. Nd5 {[%clk 0:00:32]}  e6 {[%clk 0:01:38]} 22. Nf4 {[%clk 0:00:30]}  Ne5 {[%clk 0:01:34]} 23. Kg2 {[%clk 0:00:28]}  Kf8 {[%clk 0:01:29]} 24. Ra1 {[%clk 0:00:17]}  Nc6 {[%clk 0:01:21]} 25. Rca2 {[%clk 0:00:15]}  Rb1 {[%clk 0:01:17]} 26. Ra6 {[%clk 0:00:12]}  Rxa1 {[%clk 0:01:15]} 27. Rxa1 {[%clk 0:00:13]}  Ke7 {[%clk 0:01:13]} 28. Nd3 {[%clk 0:00:12]}  Rb6 {[%clk 0:01:05]} 29. e5 {[%clk 0:00:09]}  dxe5 {[%clk 0:01:01]} 30. Nxc5 {[%clk 0:00:09]}  a5 {[%clk 0:00:59]} 31. Ne4 {[%clk 0:00:08]}  Rb4 {[%clk 0:00:56]} 32. Nd2 {[%clk 0:00:07]}  a4 {[%clk 0:00:55]} 33. Kf3 {[%clk 0:00:07]}  Na5 {[%clk 0:00:50]} 34. c5 {[%clk 0:00:05]}  Nb3 {[%clk 0:00:44]} 35. Nxb3 {[%clk 0:00:05]}  axb3 {[%clk 0:00:44]} 36. Rb1 {[%clk 0:00:06]}  f5 {[%clk 0:00:42]} 37. Ke3 {[%clk 0:00:06]}  Kd7 {[%clk 0:00:40]} 38. Kd3 {[%clk 0:00:06]}  Kc6 {[%clk 0:00:40]} 39. Kc3 {[%clk 0:00:07]}  Kxc5 {[%clk 0:00:40]} 40. Kb2 {[%clk 0:00:05]}  e4 {[%clk 0:00:33]} 41. Ra1 {[%clk 0:00:04]}  Kd4 {[%clk 0:00:32]} 42. Rd1+ {[%clk 0:00:03]}  Ke5 {[%clk 0:00:31]} 43. Rd7 {[%clk 0:00:03]}  h5 {[%clk 0:00:28]} 44. h4 {[%clk 0:00:03]}  Rb6 {[%clk 0:00:23]} 45. Rg7 {[%clk 0:00:03]}  Kf6 {[%clk 0:00:22]} 46. Rd7 {[%clk 0:00:03]}  e5 {[%clk 0:00:21]} 47. Rd8 {[%clk 0:00:03]}  Ke7 {[%clk 0:00:13]} 48. Rg8 {[%clk 0:00:03]}  Kf7 {[%clk 0:00:13]} 49. Rd8 {[%clk 0:00:03]}  f4 {[%clk 0:00:13]} 50. Rd5 {[%clk 0:00:01]}  Ke6 {[%clk 0:00:11]} 51. Rd8 {[%clk 0:00:01]}  e3 {[%clk 0:00:10]} 52. fxe3 {[%clk 0:00:02]}  fxg3 {[%clk 0:00:09]} 53. Rd2 {[%clk 0:00:01]}  Kf5 {[%clk 0:00:08]} 54. Rg2 {[%clk 0:00:02]}  Kg4 {[%clk 0:00:08]} 55. Rg1 {[%clk 0:00:02]}  Kf3 {[%clk 0:00:07]} 56. Rf1+ {[%clk 0:00:02]}  Ke2 {[%clk 0:00:07]} 57. Rf6 {[%clk 0:00:03]}  g2 {[%clk 0:00:06]} 58. Rxb6 {[%clk 0:00:03]}  g1=Q {[%clk 0:00:05]} 59. Rxb3 {[%clk 0:00:04]}  Qxe3 {[%clk 0:00:06]} 60. Rb7 {[%clk 0:00:03]}  Qd2+ {[%clk 0:00:05]} 61. Kb3 {[%clk 0:00:02]}  Qd5+ {[%clk 0:00:05]} 0-1


[Site "https://www.chess.com"]

[Event "Titled Tuesday Blitz June 27 Late 2023"]
[White "Szente Varga, Fruzsina"]
[Black "Peycheva, Gergana"]
[WhiteFideId "712264"]
[BlackFideId "2916711"]
[WhiteElo "2344"]
[BlackElo "2527"]
[Result "0-1"]
[Round "2"]
[TimeControl "180+2"]
[Date "2023.06.27"]
[WhiteClock "0:00:04"]
[BlackClock "0:00:09"]
[Board "135"]

1. e4 {[%clk 0:02:58]}  c5 {[%clk 0:02:58]} 2. Nf3 {[%clk 0:02:55]}  Nc6 {[%clk 0:02:59]} 3. Bb5 {[%clk 0:02:54]}  g6 {[%clk 0:02:59]} 4. O-O {[%clk 0:02:52]}  Bg7 {[%clk 0:02:59]} 5. Nc3 {[%clk 0:02:51]}  Nd4 {[%clk 0:02:49]} 6. Nxd4 {[%clk 0:02:44]}  cxd4 {[%clk 0:02:50]} 7. Ne2 {[%clk 0:02:42]}  e6 {[%clk 0:02:29]} 8. f4 {[%clk 0:02:27]}  Ne7 {[%clk 0:02:28]} 9. e5 {[%clk 0:02:16]}  O-O {[%clk 0:02:21]} 10. Nxd4 {[%clk 0:01:42]}  Qb6 {[%clk 0:02:12]} 11. c3 {[%clk 0:01:30]}  Nf5 {[%clk 0:02:12]} 12. Qa4 {[%clk 0:01:26]}  d6 {[%clk 0:02:04]} 13. Kh1 {[%clk 0:01:12]}  dxe5 {[%clk 0:02:00]} 14. Nxf5 {[%clk 0:01:11]}  exf5 {[%clk 0:01:51]} 15. fxe5 {[%clk 0:01:11]}  Bxe5 {[%clk 0:01:51]} 16. d4 {[%clk 0:01:10]}  Bg7 {[%clk 0:01:51]} 17. Bg5 {[%clk 0:01:05]}  Be6 {[%clk 0:01:48]} 18. Be7 {[%clk 0:00:44]}  Rfc8 {[%clk 0:01:43]} 19. Bc5 {[%clk 0:00:41]}  Qd8 {[%clk 0:01:42]} 20. Rae1 {[%clk 0:00:33]}  a6 {[%clk 0:01:28]} 21. Be2 {[%clk 0:00:20]}  b6 {[%clk 0:01:21]} 22. Ba3 {[%clk 0:00:20]}  Bd5 {[%clk 0:01:15]} 23. Bf3 {[%clk 0:00:19]}  Bxf3 {[%clk 0:01:04]} 24. Rxf3 {[%clk 0:00:20]}  Qd5 {[%clk 0:01:04]} 25. Qb3 {[%clk 0:00:19]}  Qxb3 {[%clk 0:00:20]} 26. axb3 {[%clk 0:00:20]}  Bf8 {[%clk 0:00:19]} 27. Bxf8 {[%clk 0:00:18]}  Kxf8 {[%clk 0:00:20]} 28. Rfe3 {[%clk 0:00:19]}  Rc7 {[%clk 0:00:19]} 29. Kg1 {[%clk 0:00:17]}  a5 {[%clk 0:00:17]} 30. Kf2 {[%clk 0:00:16]}  Rd8 {[%clk 0:00:18]} 31. Re5 {[%clk 0:00:11]}  Rd6 {[%clk 0:00:14]} 32. R1e3 {[%clk 0:00:08]}  Kg7 {[%clk 0:00:14]} 33. Ke2 {[%clk 0:00:08]}  Kf6 {[%clk 0:00:14]} 34. Kd3 {[%clk 0:00:08]}  Re6 {[%clk 0:00:11]} 35. c4 {[%clk 0:00:05]}  f4 {[%clk 0:00:09]} 36. R3e4 {[%clk 0:00:05]}  g5 {[%clk 0:00:10]} 37. h4 {[%clk 0:00:05]}  h6 {[%clk 0:00:10]} 38. hxg5+ {[%clk 0:00:05]}  hxg5 {[%clk 0:00:10]} 39. Rd5 {[%clk 0:00:04]}  Rxe4 {[%clk 0:00:06]} 40. Kxe4 {[%clk 0:00:05]}  Re7+ {[%clk 0:00:07]} 41. Kf3 {[%clk 0:00:04]}  Re3+ {[%clk 0:00:06]} 42. Kf2 {[%clk 0:00:04]}  Rxb3 {[%clk 0:00:06]} 43. c5 {[%clk 0:00:05]}  bxc5 {[%clk 0:00:06]} 44. dxc5 {[%clk 0:00:06]}  Rxb2+ {[%clk 0:00:06]} 45. Kf3 {[%clk 0:00:06]}  a4 {[%clk 0:00:07]} 46. Rd6+ {[%clk 0:00:06]}  Ke5 {[%clk 0:00:06]} 47. Ra6 {[%clk 0:00:07]}  Rb3+ {[%clk 0:00:05]} 48. Kg4 {[%clk 0:00:06]}  Rg3+ {[%clk 0:00:06]} 49. Kh5 {[%clk 0:00:07]}  Rxg2 {[%clk 0:00:06]} 50. Rxa4 {[%clk 0:00:07]}  f3 {[%clk 0:00:07]} 51. c6 {[%clk 0:00:06]}  Kd6 {[%clk 0:00:07]} 52. Rc4 {[%clk 0:00:06]}  Kc7 {[%clk 0:00:07]} 53. Rc1 {[%clk 0:00:06]}  f2 {[%clk 0:00:07]} 54. Rf1 {[%clk 0:00:06]}  g4 {[%clk 0:00:08]} 55. Kh4 {[%clk 0:00:06]}  g3 {[%clk 0:00:08]} 56. Kh3 {[%clk 0:00:04]}  Rg1 {[%clk 0:00:09]} 0-1


[Site "https://www.chess.com"]